[Event "26th Zadar Open 2019"]
[Site "Zadar"]
[Date "2019.12.18"]
[Round "5.20"]
[White "Antova, Gabriela"]
[Black "Dimitrov, Vladimir"]
[Result "1-0"]
[ECO "C92"]
[WhiteElo "2314"]
[BlackElo "2285"]
[Annotator "NA"]
[PlyCount "91"]
[EventDate "2019.12.15"]
[EventType "swiss"]
[EventCountry "CRO"]
[SourceTitle "playchess.com"]
[Source "ChessBase"]
[SourceQuality "1"]
[TimeControl "40/5400+30:1800+30"]

1. e4 {[%emt 0:00:30]} e5 {[%emt 0:00:30]} 2. Nf3 {[%emt 0:00:00]} Nc6 {[%emt 0:00:00]} 3. Bb5 {[%emt 0:00:00]} a6 {[%emt 0:00:00]} 4. Ba4 {[%emt 0:00:30]} Nf6 {[%emt 0:00:30]} 5. O-O {[%emt 0:00:00]} Be7 {[%emt 0:00:00]} 6. Re1 {[%emt 0:00:00]} b5 {[%emt 0:00:00]} 7. Bb3 {[%emt 0:00:30]} d6 {[%emt 0:00:00]} 8. h3 $11 {[%emt 0:00:30]} O-O {[%emt 0:01:00]} 9. c3 {[%emt 0:00:30]} Bb7 {[%emt 0:00:30]} 10. d4 {[%emt 0:01:30]} Nd7 {[%emt 0:00:30]} 11. Nbd2 {[%emt 0:14:30]} Bf6 {[%emt 0:01:30]} 12. Nf1 {[%emt 0:00:30]} exd4 {[%emt 0:02:30]} 13. cxd4 {[%emt 0:03:30]} Na5 {[%emt 0:00:00]} 14. Bc2 {[%emt 0:00:30]} c5 {[%emt 0:00:00]} 15. d5 {[%emt 0:10:30]} Re8 {[%emt 0:02:30]} 16. Ne3 {[%emt 0:05:30]} Ne5 {[%emt 0:00:30]} 17. Rb1 {[%emt 0:02:30]} Nac4 {[%emt 0:02:30]} 18. Nxe5 {[%emt 0:06:30]} Nxe5 {[%emt 0:04:30]} 19. Nf5 {[%emt 0:07:30]} Bc8 {[%emt 0:04:30]} 20. Ng3 {[%emt 0:04:30]} Ng6 {[%emt 0:04:30]} 21. Be3 {[%emt 0:01:30]} Bg5 {[%emt 0:02:30]} 22. Qd2 {[%emt 0:04:30]} Bxe3 {[%emt 0:00:30]} 23. Rxe3 {[%emt 0:00:00]} Qg5 {[%emt 0:03:30]} 24. Kh1 {[%emt 0:09:00]} Ra7 {[%emt 0:07:30]} 25. Ne2 {[%emt 0:07:55]} Rae7 {[%emt 0:01:30]} 26. f4 {[%emt 0:02:07]} Qh6 {[%emt 0:00:00]} 27. Rf1 {[%emt 0:01:00]} Bg4 {[%emt 0:02:00]} 28. Kg1 {[%emt 0:06:11]} Bc8 {[%emt 0:03:30]} 29. Rff3 {[%emt 0:04:11]} f6 {[%emt 0:03:30]} 30. a4 {[%emt 0:01:02]} b4 {[%emt 0:00:00]} 31. Bd3 {[%emt 0:01:41]} Nh4 {[%emt 0:00:00]} 32. Rg3 {[%emt 0:00:05]} f5 {[%emt 0:01:30]} 33. exf5 {[%emt 0:00:40]} Nxf5 {[%emt 0:04:30]} 34. Bxf5 {[%emt 0:00:15]} Bxf5 {[%emt 0:00:00]} 35. Rxe7 {[%emt 0:00:26]} Rxe7 {[%emt 0:00:00]} 36. Re3 {[%emt 0:00:07]} Qf6 {[%emt 0:00:30]} 37. Ng3 {[%emt 0:01:37]} Bg6 {[%emt 0:00:30]} 38. Rxe7 {[%emt 0:01:42]} Qxe7 {[%emt 0:00:30]} 39. a5 {[%emt 0:03:55]} h6 {[%emt 0:00:30]} 40. Kf2 {[%emt 0:01:08]} Qf6 {[%emt 0:00:00]} 41. Nf1 {[%emt 0:08:28]} Bf7 {[%emt 0:10:00]} 42. Kg1 {[%emt 0:00:30]} Qe7 {[%emt 0:00:30]} 43. Qd3 {[%emt 0:01:30]} Qb7 {[%emt 0:00:30]} 44. Ne3 {[%emt 0:00:00]} Be8 {[%emt 0:00:30]} 45. Nf5 {[%emt 0:03:51]} Bg6 {[%emt 0:00:30]} 46. Nxd6 {[%emt 0:01:26]} 1-0

[Event "26th Zadar Open 2019"]
[Site "Zadar"]
[Date "2019.12.18"]
[Round "5.21"]
[White "Rogic, Davor"]
[Black "Deglmann, Ludwig"]
[Result "1-0"]
[ECO "C06"]
[WhiteElo "2485"]
[BlackElo "2261"]
[Annotator "ChessBase"]
[PlyCount "67"]
[EventDate "2019.12.15"]
[EventType "swiss"]
[EventCountry "CRO"]
[SourceTitle "playchess.com"]
[Source "ChessBase"]
[SourceQuality "1"]
[TimeControl "40/5400+30:1800+30"]

1. e4 {[%emt 0:00:30]} e6 {[%emt 0:00:30]} 2. d4 {[%emt 0:00:30]} d5 {[%emt 0:00:00]} 3. Nd2 {[%emt 0:00:00]} Nf6 {[%emt 0:01:00]} 4. e5 {[%emt 0:00:00]} Nfd7 {[%emt 0:00:30]} 5. Bd3 {[%emt 0:00:30]} c5 {[%emt 0:00:00]} 6. c3 {[%emt 0:00:00]} Nc6 {[%emt 0:00:00]} 7. Ne2 {[%emt 0:00:00]} cxd4 {[%emt 0:00:30]} 8. cxd4 {[%emt 0:00:30]} f6 {[%emt 0:00:30]} 9. exf6 {[%emt 0:00:30]} Nxf6 {[%emt 0:03:30]} 10. Nf3 {[%emt 0:00:30]} Bd6 {[%emt 0:00:30]} 11. O-O {[%emt 0:00:00]} Qc7 {[%emt 0:00:30]} 12. Bd2 {[%emt 0:01:00]} O-O {[%emt 0:06:30]} 13. Rc1 {[%emt 0:05:30]} Bd7 {[%emt 0:27:30]} 14. Bc3 {[%emt 0:04:30]} Rac8 {[%emt 0:15:30]} 15. Ng3 {[%emt 0:02:30]} Qb8 {[%emt 0:15:30]} 16. Qe2 {[%emt 0:06:30]} a6 {[%emt 0:07:49]} 17. Ne5 {[%emt 0:02:30]} Nxe5 {[%emt 0:01:37]} 18. dxe5 {[%emt 0:00:00]} Rxc3 {[%emt 0:00:06]} 19. bxc3 {[%emt 0:05:00]} Bxe5 {[%emt 0:00:11]} 20. c4 {[%emt 0:00:30]} g6 {[%emt 0:04:14]} 21. Rb1 {[%emt 0:03:30]} Bc6 {[%emt 0:04:23]} 22. Rfe1 {[%emt 0:14:30]} Bd4 {[%emt 0:01:41]} 23. Kh1 {[%emt 0:28:30]} Kh8 {[%emt 0:03:48]} 24. f3 {[%emt 0:01:30]} e5 {[%emt 0:00:25]} 25. Qd2 {[%emt 0:05:19]} e4 {[%emt 0:02:15]} 26. cxd5 {[%emt 0:03:37]} Nxd5 {[%emt 0:01:28]} 27. Nxe4 {[%emt 0:02:22]} Be5 {[%emt 0:00:42]} 28. Bc4 {[%emt 0:01:32]} Nf6 {[%emt 0:01:26]} 29. Nxf6 {[%emt 0:03:29]} Bxf6 {[%emt 0:00:19]} 30. Bxa6 {[%emt 0:01:23]} Rd8 {[%emt 0:00:14]} 31. Qf2 {[%emt 0:01:37]} Qc7 {[%emt 0:00:58]} 32. Bb5 {[%emt 0:00:55]} Bd5 {[%emt 0:00:41]} 33. a4 {[%emt 0:01:00]} Qf4 {[%emt 0:00:29]} 34. Qg3 {[%emt 0:00:00]} 1-0

[Event "26th Zadar Open 2019"]
[Site "Zadar"]
[Date "2019.12.18"]
[Round "5.22"]
[White "Khalakhan, Jurij"]
[Black "Ascic, Pero"]
[Result "0-1"]
[ECO "A28"]
[WhiteElo "2240"]
[BlackElo "2310"]
[Annotator "NA"]
[PlyCount "78"]
[EventDate "2019.12.15"]
[EventType "swiss"]
[EventCountry "CRO"]
[SourceTitle "playchess.com"]
[Source "ChessBase"]
[SourceQuality "1"]
[TimeControl "40/5400+30:1800+30"]

1. c4 {[%emt 0:05:30]} Nf6 {[%emt 0:05:30]} 2. Nc3 {[%emt 0:00:30]} e5 {[%emt 0:01:30]} 3. Nf3 {[%emt 0:00:00]} Nc6 {[%emt 0:00:00]} 4. e3 {[%emt 0:00:00]} d6 {[%emt 0:03:00]} 5. d4 {[%emt 0:03:30]} Be7 {[%emt 0:06:30]} 6. b4 {[%emt 0:04:30]} O-O {[%emt 0:02:30]} 7. b5 {[%emt 0:03:30]} exd4 {[%emt 0:00:30]} 8. exd4 {[%emt 0:00:00]} Nb8 {[%emt 0:00:30]} 9. a4 {[%emt 0:05:00]} Bg4 {[%emt 0:08:30]} 10. Be2 {[%emt 0:00:00]} d5 {[%emt 0:07:30]} 11. c5 {[%emt 0:00:00]} Ne4 {[%emt 0:02:30]} 12. Qc2 {[%emt 0:01:30]} Nxc3 {[%emt 0:00:30]} 13. Qxc3 {[%emt 0:00:00]} Nd7 {[%emt 0:01:30]} 14. O-O {[%emt 0:07:00]} Nf6 {[%emt 0:02:30]} 15. Qc2 {[%emt 0:13:30]} Re8 {[%emt 0:03:30]} 16. Bf4 {[%emt 0:08:30]} Ne4 {[%emt 0:04:30]} 17. Ne5 {[%emt 0:06:30]} Bxe2 {[%emt 0:02:30]} 18. Qxe2 {[%emt 0:00:30]} Bf6 {[%emt 0:11:30]} 19. Rfe1 {[%emt 0:03:30]} Bxe5 {[%emt 0:16:23]} 20. Bxe5 {[%emt 0:00:30]} f6 {[%emt 0:00:07]} 21. Bf4 {[%emt 0:03:30]} Qd7 {[%emt 0:00:33]} 22. Qc2 {[%emt 0:04:30]} c6 {[%emt 0:03:07]} 23. f3 {[%emt 0:04:30]} Ng5 {[%emt 0:01:25]} 24. bxc6 {[%emt 0:00:30]} bxc6 {[%emt 0:00:16]} 25. Qd2 {[%emt 0:02:30]} h6 {[%emt 0:00:37]} 26. h4 {[%emt 0:01:30]} Nf7 {[%emt 0:02:08]} 27. Qd3 {[%emt 0:04:41]} Nd8 {[%emt 0:06:44]} 28. Bxh6 {[%emt 0:03:38]} Rxe1+ {[%emt 0:01:47]} 29. Rxe1 {[%emt 0:00:03]} Ne6 {[%emt 0:02:11]} 30. Bd2 {[%emt 0:06:12]} Rb8 {[%emt 0:01:42]} 31. h5 {[%emt 0:00:28]} Qf7 {[%emt 0:00:55]} 32. h6 {[%emt 0:00:29]} gxh6 {[%emt 0:00:30]} 33. Bxh6 {[%emt 0:00:15]} Re8 {[%emt 0:01:29]} 34. Kf2 {[%emt 0:02:10]} Qh5 {[%emt 0:00:20]} 35. Bd2 {[%emt 0:02:30]} Qh4+ {[%emt 0:00:42]} 36. Kg1 {[%emt 0:00:02]} Kf7 {[%emt 0:00:00]} 37. Bc3 {[%emt 0:02:41]} Nf4 {[%emt 0:00:50]} 38. Qf1 {[%emt 0:03:50]} Rg8 {[%emt 0:00:30]} 39. Re2 {[%emt 0:00:42]} Nh3+ {[%emt 0:00:12]} 0-1

[Event "26th Zadar Open 2019"]
[Site "Zadar"]
[Date "2019.12.18"]
[Round "5.23"]
[White "Sutkovic, Damir"]
[Black "Sahil, Tickoo"]
[Result "1-0"]
[ECO "A12"]
[WhiteElo "2292"]
[BlackElo "2259"]
[Annotator "NA"]
[PlyCount "77"]
[EventDate "2019.12.15"]
[EventType "swiss"]
[EventCountry "CRO"]
[SourceTitle "playchess.com"]
[Source "ChessBase"]
[SourceQuality "1"]
[TimeControl "40/5400+30:1800+30"]

1. Nf3 {[%emt 0:00:30]} d5 {[%emt 0:00:30]} 2. c4 {[%emt 0:00:00]} c6 {[%emt 0:02:30]} 3. b3 {[%emt 0:01:00]} Nf6 {[%emt 0:00:30]} 4. Bb2 {[%emt 0:00:00]} Bg4 {[%emt 0:03:30]} 5. e3 {[%emt 0:03:00]} e6 {[%emt 0:00:30]} 6. h3 {[%emt 0:01:30]} Bh5 {[%emt 0:02:30]} 7. d3 {[%emt 0:00:30]} Qa5+ {[%emt 0:06:30]} 8. Nbd2 {[%emt 0:05:30]} Ba3 {[%emt 0:02:30]} 9. Bxa3 {[%emt 0:03:30]} Qxa3 {[%emt 0:00:30]} 10. Qc1 {[%emt 0:01:30]} Qxc1+ {[%emt 0:02:30]} 11. Rxc1 {[%emt 0:00:00]} h6 {[%emt 0:07:30]} 12. d4 {[%emt 0:01:00]} Bg6 {[%emt 0:01:30]} 13. b4 {[%emt 0:01:30]} Nbd7 {[%emt 0:00:30]} 14. Nb3 {[%emt 0:02:30]} dxc4 {[%emt 0:03:30]} 15. Bxc4 {[%emt 0:00:30]} Be4 {[%emt 0:03:30]} 16. O-O {[%emt 0:05:30]} Bxf3 {[%emt 0:05:30]} 17. gxf3 {[%emt 0:00:30]} a6 {[%emt 0:04:30]} 18. Na5 {[%emt 0:04:30]} Ra7 {[%emt 0:18:30]} 19. Rfd1 {[%emt 0:07:30]} O-O {[%emt 0:00:00]} 20. a3 {[%emt 0:04:30]} Re8 {[%emt 0:01:00]} 21. f4 {[%emt 0:04:30]} Nb6 {[%emt 0:03:30]} 22. Bb3 {[%emt 0:05:30]} Nbd5 {[%emt 0:01:30]} 23. Kg2 {[%emt 0:01:30]} Ne4 {[%emt 0:01:30]} 24. f5 {[%emt 0:03:30]} exf5 {[%emt 0:04:30]} 25. Bxd5 {[%emt 0:00:30]} cxd5 {[%emt 0:00:30]} 26. Rc7 {[%emt 0:00:30]} Nd6 {[%emt 0:07:18]} 27. a4 {[%emt 0:17:30]} Kf8 {[%emt 0:07:06]} 28. Rd7 {[%emt 0:02:30]} Re6 {[%emt 0:02:13]} 29. Rc1 {[%emt 0:01:30]} Nc4 {[%emt 0:07:22]} 30. Nxc4 {[%emt 0:02:30]} dxc4 {[%emt 0:00:05]} 31. Rxc4 {[%emt 0:00:30]} Re7 {[%emt 0:01:15]} 32. Rc8+ {[%emt 0:00:30]} Re8 {[%emt 0:00:01]} 33. Rcc7 {[%emt 0:00:30]} Re6 {[%emt 0:00:59]} 34. Rxf7+ {[%emt 0:00:43]} Ke8 {[%emt 0:00:01]} 35. Rxg7 {[%emt 0:00:17]} Kd8 {[%emt 0:00:22]} 36. Rgd7+ {[%emt 0:02:42]} Ke8 {[%emt 0:00:01]} 37. Rh7 {[%emt 0:00:00]} Kd8 {[%emt 0:00:10]} 38. Rcg7 {[%emt 0:00:54]} a5 {[%emt 0:01:07]} 39. b5 {[%emt 0:00:41]} 1-0

[Event "26th Zadar Open 2019"]
[Site "Zadar"]
[Date "2019.12.18"]
[Round "5.24"]
[White "de Francesco, Klaus"]
[Black "Zelic, Mladen"]
[Result "0-1"]
[ECO "D85"]
[WhiteElo "2273"]
[BlackElo "2254"]
[Annotator "NA"]
[PlyCount "62"]
[EventDate "2019.12.15"]
[EventType "swiss"]
[EventCountry "CRO"]
[SourceTitle "playchess.com"]
[Source "ChessBase"]
[SourceQuality "1"]
[TimeControl "40/5400+30:1800+30"]

1. d4 {[%emt 0:00:00]} Nf6 {[%emt 0:00:30]} 2. c4 {[%emt 0:00:00]} g6 {[%emt 0:00:30]} 3. Nc3 {[%emt 0:00:00]} d5 {[%emt 0:00:00]} 4. cxd5 {[%emt 0:00:00]} Nxd5 {[%emt 0:00:00]} 5. Bd2 {[%emt 0:00:00]} Bg7 {[%emt 0:00:30]} 6. e4 {[%emt 0:00:00]} Nxc3 {[%emt 0:01:30]} 7. Bxc3 {[%emt 0:00:30]} O-O {[%emt 0:00:30]} 8. Qd2 {[%emt 0:00:30]} c5 {[%emt 0:12:30]} 9. d5 {[%emt 0:00:30]} e6 {[%emt 0:02:30]} 10. Bxg7 {[%emt 0:02:30]} Kxg7 {[%emt 0:00:30]} 11. d6 {[%emt 0:00:30]} e5 {[%emt 0:02:30]} 12. h4 {[%emt 0:09:30]} h6 {[%emt 0:06:30]} 13. Rc1 {[%emt 0:03:30]} Be6 {[%emt 0:06:30]} 14. Rxc5 {[%emt 0:02:30]} Nd7 {[%emt 0:02:30]} 15. Rc7 {[%emt 0:05:30]} Nf6 {[%emt 0:05:30]} 16. f3 {[%emt 0:00:30]} Ne8 {[%emt 0:01:30]} 17. Rxb7 {[%emt 0:00:30]} Nxd6 {[%emt 0:01:30]} 18. Rb4 {[%emt 0:00:30]} Qa5 {[%emt 0:06:30]} 19. a3 {[%emt 0:02:30]} Rfd8 {[%emt 0:02:30]} 20. Qe3 {[%emt 0:00:30]} Rab8 {[%emt 0:03:30]} 21. Kf2 {[%emt 0:02:30]} Rxb4 {[%emt 0:04:30]} 22. axb4 {[%emt 0:00:00]} Qxb4 {[%emt 0:00:30]} 23. Qxa7 {[%emt 0:02:00]} Qxb2+ {[%emt 0:00:30]} 24. Kg3 {[%emt 0:00:30]} Qc3 {[%emt 0:04:30]} 25. Ne2 {[%emt 0:03:30]} Nxe4+ {[%emt 0:03:30]} 26. Kh2 {[%emt 0:00:00]} Qc5 {[%emt 0:00:30]} 27. Qa1 {[%emt 0:01:00]} Nf2 {[%emt 0:03:30]} 28. Rg1 {[%emt 0:00:30]} Nd3 {[%emt 0:01:30]} 29. Qa4 {[%emt 0:02:30]} Qf2 {[%emt 0:02:30]} 30. Ng3 {[%emt 0:00:30]} Rd4 {[%emt 0:00:30]} 31. Qa5 {[%emt 0:00:30]} Rxh4# {[%emt 0:00:30]} 0-1

[Event "26th Zadar Open 2019"]
[Site "Zadar"]
[Date "2019.12.18"]
[Round "5.25"]
[White "Stocko, Josip"]
[Black "Hrescak, Ivana"]
[Result "1-0"]
[ECO "B90"]
[WhiteElo "2267"]
[BlackElo "2194"]
[Annotator "NA"]
[PlyCount "79"]
[EventDate "2019.12.15"]
[EventType "swiss"]
[EventCountry "CRO"]
[SourceTitle "playchess.com"]
[Source "ChessBase"]
[SourceQuality "1"]
[TimeControl "40/5400+30:1800+30"]

1. e4 {[%emt 0:00:30]} c5 {[%emt 0:00:30]} 2. Nf3 {[%emt 0:00:00]} d6 {[%emt 0:00:00]} 3. d4 {[%emt 0:00:00]} cxd4 {[%emt 0:00:00]} 4. Nxd4 {[%emt 0:00:30]} Nf6 {[%emt 0:00:00]} 5. Nc3 {[%emt 0:00:00]} a6 {[%emt 0:00:00]} 6. h3 {[%emt 0:05:00]} e5 {[%emt 0:00:30]} 7. Nde2 {[%emt 0:00:30]} h5 {[%emt 0:00:00]} 8. g3 {[%emt 0:00:30]} Be7 {[%emt 0:01:00]} 9. Bg2 {[%emt 0:00:30]} b5 {[%emt 0:03:30]} 10. O-O {[%emt 0:03:30]} Bb7 {[%emt 0:01:30]} 11. Kh2 {[%emt 0:17:30]} Nbd7 {[%emt 0:04:30]} 12. Be3 {[%emt 0:18:30]} Rc8 {[%emt 0:04:30]} 13. a4 {[%emt 0:03:30]} b4 {[%emt 0:02:30]} 14. Nd5 {[%emt 0:00:30]} Bxd5 {[%emt 0:01:30]} 15. exd5 {[%emt 0:00:00]} Nb6 {[%emt 0:04:30]} 16. b3 {[%emt 0:15:00]} Nbd7 {[%emt 0:08:30]} 17. a5 {[%emt 0:02:30]} Qc7 {[%emt 0:06:30]} 18. Qd2 {[%emt 0:04:30]} O-O {[%emt 0:03:30]} 19. Rfc1 {[%emt 0:00:00]} Rb8 {[%emt 0:06:30]} 20. c3 {[%emt 0:07:26]} Qb7 {[%emt 0:06:30]} 21. Ra4 {[%emt 0:04:23]} bxc3 {[%emt 0:00:30]} 22. Rxc3 {[%emt 0:01:03]} Qb5 {[%emt 0:01:30]} 23. Nc1 {[%emt 0:05:16]} Rbc8 {[%emt 0:05:30]} 24. Rc6 {[%emt 0:02:49]} Rb8 {[%emt 0:05:30]} 25. Qd3 {[%emt 0:04:12]} Qxd3 {[%emt 0:06:30]} 26. Nxd3 {[%emt 0:00:30]} Rxb3 {[%emt 0:07:30]} 27. Nb4 {[%emt 0:00:06]} Kh7 {[%emt 0:09:53]} 28. Rxa6 {[%emt 0:00:30]} Re8 {[%emt 0:01:12]} 29. Ra7 {[%emt 0:01:40]} Bd8 {[%emt 0:02:26]} 30. Nc6 {[%emt 0:00:54]} Kg6 {[%emt 0:05:03]} 31. a6 {[%emt 0:01:15]} Nb6 {[%emt 0:00:58]} 32. Bxb6 {[%emt 0:02:07]} Rxb6 {[%emt 0:00:27]} 33. Ra8 {[%emt 0:00:32]} Nd7 {[%emt 0:01:02]} 34. Rxd8 {[%emt 0:00:15]} Rxd8 {[%emt 0:00:09]} 35. Nxd8 {[%emt 0:00:06]} Rb8 {[%emt 0:00:44]} 36. Nc6 {[%emt 0:00:17]} Rh8 {[%emt 0:00:56]} 37. a7 {[%emt 0:00:17]} Nb6 {[%emt 0:00:03]} 38. Rb4 {[%emt 0:00:05]} Na8 {[%emt 0:00:05]} 39. Rb8 {[%emt 0:00:25]} Kh7 {[%emt 0:00:24]} 40. Nd8 {[%emt 0:00:30]} 1-0

[Event "26th Zadar Open 2019"]
[Site "Zadar"]
[Date "2019.12.19"]
[Round "6.1"]
[White "Brkic, Ante"]
[Black "Mosesov, Danyil"]
[Result "1/2-1/2"]
[ECO "C77"]
[WhiteElo "2576"]
[BlackElo "2290"]
[Annotator "RC"]
[PlyCount "97"]
[EventDate "2019.12.15"]
[EventType "swiss"]
[EventCountry "CRO"]
[SourceTitle "playchess.com"]
[Source "ChessBase"]
[SourceQuality "1"]
[TimeControl "40/5400+30:1800+30"]

1. e4 {[%emt 0:00:30]} e5 {[%emt 0:10:30]} 2. Nf3 {[%emt 0:00:00]} Nc6 {[%emt 0:00:30]} 3. Bb5 {[%emt 0:03:00]} a6 {[%emt 0:00:00]} 4. Ba4 {[%emt 0:00:00]} Nf6 {[%emt 0:00:00]} 5. Nc3 {[%emt 0:04:00]} Bc5 {[%emt 0:01:30]} 6. O-O {[%emt 0:01:30]} O-O {[%emt 0:00:30]} 7. d3 {[%emt 0:01:30]} d6 {[%emt 0:05:30]} 8. Bxc6 {[%emt 0:00:30]} bxc6 {[%emt 0:00:30]} 9. Be3 {[%emt 0:00:30]} Bb6 {[%emt 0:09:30]} 10. h3 {[%emt 0:00:30]} Qe7 {[%emt 0:02:30]} 11. Qd2 {[%emt 0:06:30]} h6 {[%emt 0:02:30]} 12. Rae1 {[%emt 0:16:30]} Rb8 {[%emt 0:06:30]} 13. Bxb6 {[%emt 0:10:30]} cxb6 {[%emt 0:00:00]} 14. Ne2 {[%emt 0:01:30]} c5 {[%emt 0:10:00]} 15. Ng3 {[%emt 0:00:30]} Nh7 {[%emt 0:00:30]} 16. Nh2 {[%emt 0:05:30]} Qg5 {[%emt 0:00:30]} 17. Nf3 {[%emt 0:19:30]} Qe7 {[%emt 0:00:30]} 18. c3 {[%emt 0:02:30]} Be6 {[%emt 0:02:30]} 19. b3 {[%emt 0:00:30]} Qf6 {[%emt 0:07:30]} 20. Qe3 {[%emt 0:01:30]} Ng5 {[%emt 0:05:30]} 21. Nxg5 {[%emt 0:03:30]} hxg5 {[%emt 0:00:30]} 22. f3 {[%emt 0:00:36]} Rfc8 {[%emt 0:03:30]} 23. Rd1 {[%emt 0:00:27]} b5 {[%emt 0:01:30]} 24. d4 {[%emt 0:05:36]} cxd4 {[%emt 0:05:30]} 25. cxd4 {[%emt 0:00:03]} exd4 {[%emt 0:04:30]} 26. Qxd4 {[%emt 0:02:31]} Qxd4+ {[%emt 0:03:54]} 27. Rxd4 {[%emt 0:00:30]} Rc2 {[%emt 0:00:10]} 28. Rf2 {[%emt 0:00:04]} Rbc8 {[%emt 0:03:11]} 29. Rfd2 {[%emt 0:00:10]} Rxd2 {[%emt 0:01:54]} 30. Rxd2 {[%emt 0:00:01]} Rc6 {[%emt 0:00:37]} 31. Ne2 {[%emt 0:00:17]} Kf8 {[%emt 0:00:08]} 32. Nd4 {[%emt 0:03:03]} Rc1+ {[%emt 0:00:02]} 33. Kf2 {[%emt 0:00:08]} Ke7 {[%emt 0:00:04]} 34. Rc2 {[%emt 0:02:46]} Ra1 {[%emt 0:03:49]} 35. Nc6+ {[%emt 0:05:30]} Kf6 {[%emt 0:03:00]} 36. Ke3 {[%emt 0:00:01]} Rd1 {[%emt 0:02:10]} 37. Ke2 {[%emt 0:04:44]} Rg1 {[%emt 0:01:40]} 38. Kf2 {[%emt 0:00:37]} Ra1 {[%emt 0:00:17]} 39. Ke2 {[%emt 0:00:56]} Rg1 {[%emt 0:00:10]} 40. Ke3 {[%emt 0:00:16]} Rd1 {[%emt 0:00:00]} 41. Rd2 {[%emt 0:12:51]} Re1+ {[%emt 0:05:54]} 42. Kf2 {[%emt 0:00:10]} Rc1 {[%emt 0:01:30]} 43. Nd4 {[%emt 0:10:15]} Ke7 {[%emt 0:00:30]} 44. Rc2 {[%emt 0:00:49]} Ra1 {[%emt 0:00:30]} 45. Ke3 {[%emt 0:01:02]} Kf6 {[%emt 0:02:30]} 46. Rd2 {[%emt 0:03:48]} Re1+ {[%emt 0:01:30]} 47. Re2 {[%emt 0:01:26]} Rd1 {[%emt 0:02:30]} 48. Rc2 {[%emt 0:00:42]} Ra1 {[%emt 0:00:30]} 49. Rd2 {[%emt 0:01:54]} 1/2-1/2

[Event "26th Zadar Open 2019"]
[Site "Zadar"]
[Date "2019.12.19"]
[Round "6.2"]
[White "Dev, Shah"]
[Black "Blohberger, Felix"]
[Result "1/2-1/2"]
[ECO "E46"]
[WhiteElo "2242"]
[BlackElo "2434"]
[Annotator "ChessBase"]
[PlyCount "76"]
[EventDate "2019.12.15"]
[EventType "swiss"]
[EventCountry "CRO"]
[SourceTitle "playchess.com"]
[Source "ChessBase"]
[SourceQuality "1"]
[TimeControl "40/5400+30:1800+30"]

1. d4 {[%emt 0:03:30]} Nf6 {[%emt 0:00:30]} 2. c4 {[%emt 0:00:30]} e6 {[%emt 0:00:00]} 3. Nc3 {[%emt 0:00:30]} Bb4 {[%emt 0:00:00]} 4. e3 {[%emt 0:00:00]} O-O {[%emt 0:00:00]} 5. Nge2 {[%emt 0:00:00]} c6 {[%emt 0:00:00]} 6. a3 {[%emt 0:02:30]} Ba5 {[%emt 0:00:30]} 7. Ng3 {[%emt 0:01:30]} d5 {[%emt 0:00:00]} 8. Bd2 {[%emt 0:00:30]} Nbd7 {[%emt 0:01:00]} 9. f4 {[%emt 0:00:00]} Bxc3 {[%emt 0:01:30]} 10. Bxc3 {[%emt 0:01:00]} b6 {[%emt 0:04:30]} 11. Be2 {[%emt 0:06:30]} Ba6 {[%emt 0:01:30]} 12. b3 {[%emt 0:00:30]} c5 {[%emt 0:01:30]} 13. O-O {[%emt 0:00:30]} cxd4 {[%emt 0:07:30]} 14. Bxd4 {[%emt 0:01:30]} Rc8 {[%emt 0:06:30]} 15. cxd5 {[%emt 0:03:30]} Bxe2 {[%emt 0:00:30]} 16. Qxe2 {[%emt 0:00:30]} Nxd5 {[%emt 0:00:30]} 17. Rfd1 {[%emt 0:30:30]} Qe7 {[%emt 0:04:30]} 18. Bxg7 {[%emt 0:01:30]} Kxg7 {[%emt 0:07:30]} 19. Rxd5 {[%emt 0:00:30]} f5 {[%emt 0:00:30]} 20. Rd2 {[%emt 0:05:30]} Nf6 {[%emt 0:00:30]} 21. Rad1 {[%emt 0:15:30]} Rfd8 {[%emt 0:05:30]} 22. b4 {[%emt 0:02:30]} Rxd2 {[%emt 0:01:30]} 23. Qxd2 {[%emt 0:00:30]} Rc7 {[%emt 0:03:30]} 24. Qd4 {[%emt 0:01:30]} Rd7 {[%emt 0:01:30]} 25. Qa1 {[%emt 0:00:00]} Rxd1+ {[%emt 0:00:30]} 26. Qxd1 {[%emt 0:00:00]} Qc7 {[%emt 0:00:00]} 27. Ne2 {[%emt 0:04:19]} Kf7 {[%emt 0:05:00]} 28. Qd3 {[%emt 0:02:21]} a5 {[%emt 0:06:30]} 29. Nc3 {[%emt 0:00:53]} axb4 {[%emt 0:00:30]} 30. axb4 {[%emt 0:00:07]} Qa7 {[%emt 0:01:30]} 31. h3 {[%emt 0:00:36]} Qa3 {[%emt 0:03:30]} 32. Qd4 {[%emt 0:00:15]} Qa1+ {[%emt 0:00:30]} 33. Kh2 {[%emt 0:00:53]} Qe1 {[%emt 0:00:30]} 34. Qd3 {[%emt 0:05:33]} Ng4+ {[%emt 0:04:30]} 35. hxg4 {[%emt 0:00:05]} Qh4+ {[%emt 0:00:30]} 36. Kg1 {[%emt 0:00:03]} Qe1+ {[%emt 0:00:30]} 37. Kh2 {[%emt 0:00:02]} Qh4+ {[%emt 0:00:00]} 38. Kg1 {[%emt 0:00:03]} Qe1+ {[%emt 0:00:00]} 1/2-1/2

[Event "26th Zadar Open 2019"]
[Site "Zadar"]
[Date "2019.12.19"]
[Round "6.6"]
[White "Bratovic, Blaz"]
[Black "Bhambure, Shantanu"]
[Result "0-1"]
[ECO "E00"]
[WhiteElo "2359"]
[BlackElo "2340"]
[Annotator "ChessBase"]
[PlyCount "60"]
[EventDate "2019.12.15"]
[EventType "swiss"]
[EventCountry "CRO"]
[SourceTitle "playchess.com"]
[Source "ChessBase"]
[SourceQuality "1"]
[TimeControl "40/5400+30:1800+30"]

1. d4 {[%emt 0:00:30]} Nf6 {[%emt 0:00:30]} 2. c4 {[%emt 0:00:30]} e6 {[%emt 0:00:00]} 3. g3 {[%emt 0:00:30]} Bb4+ {[%emt 0:00:00]} 4. Bd2 {[%emt 0:00:30]} a5 {[%emt 0:00:30]} 5. Bg2 {[%emt 0:00:30]} O-O {[%emt 0:00:30]} 6. Nc3 {[%emt 0:06:30]} d6 {[%emt 0:07:30]} 7. e3 {[%emt 0:10:30]} e5 {[%emt 0:07:30]} 8. Nge2 {[%emt 0:00:30]} Re8 {[%emt 0:05:30]} 9. O-O {[%emt 0:00:30]} c6 {[%emt 0:03:30]} 10. Qc2 {[%emt 0:18:30]} Nbd7 {[%emt 0:08:30]} 11. a3 {[%emt 0:00:30]} Bxc3 {[%emt 0:00:30]} 12. Nxc3 {[%emt 0:00:30]} Nf8 {[%emt 0:11:30]} 13. h3 {[%emt 0:01:30]} e4 {[%emt 0:11:30]} 14. b4 {[%emt 0:04:30]} Be6 {[%emt 0:03:30]} 15. Ne2 {[%emt 0:00:30]} axb4 {[%emt 0:06:30]} 16. axb4 {[%emt 0:00:00]} d5 {[%emt 0:01:30]} 17. Nf4 {[%emt 0:02:00]} Bd7 {[%emt 0:02:30]} 18. Rxa8 {[%emt 0:02:30]} Qxa8 {[%emt 0:00:30]} 19. c5 {[%emt 0:00:30]} g5 {[%emt 0:05:30]} 20. Ne2 {[%emt 0:00:00]} Ng6 {[%emt 0:00:30]} 21. Bc3 {[%emt 0:00:00]} h5 {[%emt 0:00:30]} 22. Ra1 {[%emt 0:00:30]} Qc8 {[%emt 0:00:30]} 23. Kh2 {[%emt 0:00:30]} h4 {[%emt 0:00:00]} 24. gxh4 {[%emt 0:05:30]} Nxh4 {[%emt 0:01:00]} 25. Rg1 {[%emt 0:00:30]} Kg7 {[%emt 0:07:16]} 26. Bh1 {[%emt 0:06:30]} Qb8+ {[%emt 0:01:51]} 27. Ng3 {[%emt 0:01:30]} Rh8 {[%emt 0:00:55]} 28. Qd1 {[%emt 0:00:30]} Bxh3 {[%emt 0:04:14]} 29. f3 {[%emt 0:04:30]} Nxf3+ {[%emt 0:01:32]} 30. Bxf3 {[%emt 0:00:30]} Bg4+ {[%emt 0:00:59]} 0-1